[Event "FIDE World Cup O12-A 2024"]
[Site "Batumi"]
[Date "2024.06.29"]
[Round "7.1"]
[White "Obidov, Biloliddin"]
[Black "Guo, Ethan"]
[Result "1/2-1/2"]
[ECO "D78"]
[WhiteElo "1998"]
[BlackElo "2136"]
[Annotator "RC"]
[PlyCount "49"]
[EventDate "2024.06.23"]
[EventType "swiss"]
[EventCountry "GEO"]
[SourceTitle "playchess.com"]
[Source "ChessBase"]
[SourceQuality "1"]
[TimeControl "5400+30"]

1. d4 {[%emt 0:00:03]} Nf6 {[%emt 0:00:08]} 2. Nf3 {[%emt 0:00:07]} g6 {[%emt 0:00:15]} 3. c4 {[%emt 0:00:13]} Bg7 {[%emt 0:00:08]} 4. g3 {[%emt 0:00:07]} O-O {[%emt 0:00:11]} 5. Bg2 {[%emt 0:00:05]} c6 {[%emt 0:00:04]} 6. O-O {[%emt 0:00:15]} d5 {[%emt 0:00:03]} 7. Nbd2 {[%emt 0:00:06]} a5 {[%emt 0:00:30]} 8. b3 {[%emt 0:01:23]} a4 {[%emt 0:00:22]} 9. Bb2 {[%emt 0:00:13]} Qa5 {[%emt 0:01:35]} 10. Rc1 {[%emt 0:00:38]} Qa6 {[%emt 0:05:45]} 11. Re1 {[%emt 0:08:41]} Bf5 {[%emt 0:05:12]} 12. Ne5 {[%emt 0:01:18]} Nbd7 {[%emt 0:03:23]} 13. Nxd7 {[%emt 0:16:07]} Bxd7 {[%emt 0:00:21]} 14. Nf3 {[%emt 0:01:51]} axb3 {[%emt 0:02:12]} 15. axb3 {[%emt 0:00:09]} Qa2 {[%emt 0:01:11]} 16. Ba1 {[%emt 0:01:37]} Bf5 {[%emt 0:03:24]} 17. Nd2 {[%emt 0:01:32]} Bh6 {[%emt 0:02:50]} 18. e3 {[%emt 0:00:40]} Bd3 {[%emt 0:12:50]} 19. Bc3 {[%emt 0:04:23]} Rfc8 {[%emt 0:14:59]} 20. Bf1 {[%emt 0:07:34]} Bf5 {[%emt 0:02:15]} 21. Ra1 {[%emt 0:10:54]} Qc2 {[%emt 0:00:14]} 22. Qxc2 {[%emt 0:00:16]} Bxc2 {[%emt 0:00:10]} 23. c5 {[%emt 0:01:30]} Nd7 {[%emt 0:01:51]} 24. Rec1 {[%emt 0:00:34]} Bf5 {[%emt 0:00:15]} 25. b4 {[%emt 0:00:13]} 1/2-1/2

[Event "FIDE World Cup O12-A 2024"]
[Site "Batumi"]
[Date "2024.06.29"]
[Round "7.2"]
[White "Bulgak, Damir"]
[Black "Kleschevnikov, Arseny"]
[Result "1-0"]
[ECO "A13"]
[WhiteElo "1931"]
[BlackElo "1895"]
[Annotator "NA RC"]
[PlyCount "69"]
[EventDate "2024.06.23"]
[EventType "swiss"]
[EventCountry "GEO"]
[SourceTitle "playchess.com"]
[Source "ChessBase"]
[SourceQuality "1"]
[TimeControl "5400+30"]

1. c4 {[%emt 0:00:17]} e6 {[%emt 0:00:05]} 2. Nf3 {[%emt 0:00:06]} d5 {[%emt 0:00:04]} 3. g3 {[%emt 0:00:07]} Nf6 {[%emt 0:00:38]} 4. Bg2 {[%emt 0:00:37]} dxc4 {[%emt 0:04:10]} 5. Qa4+ {[%emt 0:00:44]} Nbd7 {[%emt 0:01:09]} 6. Qxc4 {[%emt 0:00:17]} c5 {[%emt 0:00:13]} 7. Qc2 {[%emt 0:00:18]} Rb8 {[%emt 1:27:41]} 8. d4 {[%emt 0:07:16]} cxd4 {[%emt 0:00:00]} 9. Nxd4 {[%emt 0:00:10]} Bc5 {[%emt 0:00:00]} 10. Nb3 {[%emt 0:03:42]} Bd6 {[%emt 0:00:00]} 11. O-O {[%emt 0:00:47]} O-O {[%emt 0:00:00]} 12. Nc3 {[%emt 0:18:55]} a6 {[%emt 0:00:00]} 13. Rd1 {[%emt 0:07:12]} Qe7 $16 {[%emt 0:00:00]} 14. Be3 {[%emt 0:07:26]} Rd8 {[%emt 0:00:00]} 15. h3 {[%emt 0:03:47]} h6 {[%emt 0:00:00]} 16. Rac1 {[%emt 0:07:21]} Nf8 {[%emt 0:00:00]} 17. Ba7 {[%emt 0:03:09]} Ra8 {[%emt 0:00:00]} 18. Bb6 {[%emt 0:00:07]} Bc7 {[%emt 0:02:14]} 19. Na4 {[%emt 0:01:22]} Rxd1+ {[%emt 0:01:06]} 20. Rxd1 {[%emt 0:00:11]} Bd6 {[%emt 0:01:29]} 21. Qd2 {[%emt 0:08:00]} Bb4 {[%emt 0:01:08]} 22. Bd8 {[%emt 0:01:48]} Bxd2 {[%emt 0:00:22]} 23. Bxe7 {[%emt 0:00:06]} Bg5 {[%emt 0:01:01]} 24. Bxf8 {[%emt 0:01:21]} Kxf8 {[%emt 0:00:17]} 25. Nb6 {[%emt 0:00:07]} Rb8 {[%emt 0:00:08]} 26. Rd8+ {[%emt 0:00:10]} Ke7 {[%emt 0:00:09]} 27. Rxc8 {[%emt 0:00:06]} Rxc8 {[%emt 0:00:05]} 28. Nxc8+ {[%emt 0:00:02]} Kd7 {[%emt 0:00:04]} 29. Bxb7 {[%emt 0:00:06]} Kc7 {[%emt 0:00:09]} 30. Bxa6 {[%emt 0:00:05]} Nd5 {[%emt 0:00:05]} 31. a3 {[%emt 0:02:07]} Bf6 {[%emt 0:01:17]} 32. e4 {[%emt 0:00:08]} Nb6 {[%emt 0:00:07]} 33. Nxb6 {[%emt 0:00:06]} Kxb6 {[%emt 0:00:02]} 34. Bc4 {[%emt 0:00:06]} Bxb2 {[%emt 0:00:06]} 35. a4 {[%emt 0:00:01]} 1-0

[Event "FIDE World Cup O12-A 2024"]
[Site "Batumi"]
[Date "2024.06.29"]
[Round "7.3"]
[White "Syed Abdul Khader"]
[Black "Siddhanth Poonja"]
[Result "1-0"]
[ECO "E40"]
[WhiteElo "2050"]
[BlackElo "1958"]
[Annotator "NA RC"]
[PlyCount "47"]
[EventDate "2024.06.23"]
[EventType "swiss"]
[EventCountry "GEO"]
[SourceTitle "playchess.com"]
[Source "ChessBase"]
[SourceQuality "1"]
[TimeControl "5400+30"]

1. d4 {[%emt 0:00:43]} Nf6 {[%emt 0:00:19]} 2. c4 {[%emt 0:00:06]} e6 {[%emt 0:00:21]} 3. Nc3 {[%emt 0:00:04]} Bb4 {[%emt 0:00:07]} 4. a3 {[%emt 0:02:59]} Bxc3+ {[%emt 0:00:10]} 5. bxc3 {[%emt 0:00:01]} O-O {[%emt 0:00:27]} 6. e3 {[%emt 0:00:05]} Nc6 {[%emt 0:00:31]} 7. Bd3 {[%emt 0:00:19]} e5 {[%emt 0:01:02]} 8. f3 {[%emt 0:14:08]} d6 {[%emt 0:00:55]} 9. Ne2 {[%emt 0:00:40]} b6 {[%emt 0:04:06]} 10. O-O {[%emt 0:02:30]} Na5 {[%emt 0:18:29]} 11. e4 {[%emt 0:20:27]} Re8 {[%emt 0:22:40]} 12. Ng3 {[%emt 0:06:05]} h6 $14 {[%emt 0:06:57]} (12... Be6 $11) 13. Be3 {[%emt 0:14:24]} Bd7 {[%emt 0:12:21]} 14. h3 {[%emt 0:03:28]} g5 {[%emt 0:03:45]} 15. Kf2 {[%emt 0:07:32]} h5 {[%emt 0:17:44]} 16. Bxg5 {[%emt 0:03:59]} h4 {[%emt 0:00:40]} 17. Kg1 {[%emt 0:01:47]} hxg3 {[%emt 0:00:51]} 18. f4 {[%emt 0:00:00]} exd4 {[%emt 0:01:43]} 19. e5 {[%emt 0:00:59]} dxe5 {[%emt 0:00:47]} 20. fxe5 {[%emt 0:00:02]} Rxe5 {[%emt 0:00:05]} 21. Bxf6 {[%emt 0:00:13]} Qe8 {[%emt 0:00:01]} 22. Qf3 {[%emt 0:01:19]} Re3 {[%emt 0:02:19]} 23. Qh5 {[%emt 0:00:18]} Rxd3 {[%emt 0:00:47]} 24. Qh8# {[%emt 0:00:06]} 1-0

[Event "FIDE World Cup O12-A 2024"]
[Site "Batumi"]
[Date "2024.06.29"]
[Round "7.4"]
[White "Sobirov, Afruzbek"]
[Black "Wang, Ted"]
[Result "0-1"]
[ECO "D00"]
[WhiteElo "1789"]
[BlackElo "2034"]
[Annotator "NA RC"]
[PlyCount "68"]
[EventDate "2024.06.23"]
[EventType "swiss"]
[EventCountry "GEO"]
[SourceTitle "playchess.com"]
[Source "ChessBase"]
[SourceQuality "1"]
[TimeControl "5400+30"]

1. d4 {[%emt 0:00:11]} Nf6 {[%emt 0:00:04]} 2. Nc3 {[%emt 0:00:13]} d5 {[%emt 0:00:02]} 3. Bf4 {[%emt 0:00:08]} g6 {[%emt 0:00:07]} 4. e3 {[%emt 0:00:20]} Bg7 {[%emt 0:00:03]} 5. Nf3 {[%emt 0:00:11]} O-O {[%emt 0:00:11]} 6. Nb5 {[%emt 0:00:25] D00: 1 d4 d5: Unusual lines.} Na6 {[%emt 0:00:07]} 7. Ne5 {[%emt 0:00:56]} c5 {[%emt 0:00:27]} 8. a4 {[%emt 0:04:39]} Nh5 {[%emt 0:06:36]} 9. Bg3 {[%emt 0:08:31]} Nxg3 {[%emt 0:06:12]} 10. hxg3 {[%emt 0:00:13]} Nc7 {[%emt 0:01:12]} 11. Qf3 {[%emt 0:08:07]} Nxb5 {[%emt 0:03:50]} 12. axb5 {[%emt 0:01:20]} Bf5 {[%emt 0:04:31]} 13. Bd3 {[%emt 0:18:58]} Bxd3 {[%emt 0:00:12]} 14. Nxd3 {[%emt 0:00:33]} cxd4 {[%emt 0:01:34]} 15. exd4 {[%emt 0:01:58]} Bxd4 {[%emt 0:04:09]} 16. g4 {[%emt 0:00:12]} Bg7 {[%emt 0:03:51]} 17. g5 {[%emt 0:03:37]} Qd7 {[%emt 0:02:07]} ({Black should play} 17... Rc8 18. Qh3 h5 19. gxh6 Bf6) 18. O-O-O {[%emt 0:06:09]} Qxb5 {[%emt 0:06:11]} 19. Qh3 {[%emt 0:01:06]} Rfc8 {[%emt 0:03:44]} 20. Qxh7+ {[%emt 0:00:20]} Kf8 {[%emt 0:00:06]} 21. Rhe1 $19 {[%emt 0:00:33]} Qa4 {[%emt 0:02:15]} 22. Re2 {[%emt 0:04:34]} Rc4 {[%emt 0:08:23]} 23. Qh3 {[%emt 0:08:32]} Rac8 {[%emt 0:04:32]} 24. c3 {[%emt 0:02:37]} Qb3 {[%emt 0:07:08]} 25. Rc2 {[%emt 0:02:46]} e6 {[%emt 0:05:14]} 26. Qg3 {[%emt 0:00:38]} Bxc3 {[%emt 0:06:18]} 27. bxc3 {[%emt 0:01:37]} Rxc3 {[%emt 0:00:23]} 28. Rxc3 {[%emt 0:00:12]} Qxc3+ {[%emt 0:00:05]} 29. Kb1 {[%emt 0:01:13]} Qc2+ {[%emt 0:00:07]} 30. Ka1 {[%emt 0:00:12]} Qxd1+ {[%emt 0:00:04]} 31. Kb2 {[%emt 0:00:13]} Rc2+ {[%emt 0:00:14]} 32. Ka3 {[%emt 0:00:13]} Rc3+ {[%emt 0:00:10]} 33. Kb4 {[%emt 0:00:33]} Qb3+ {[%emt 0:00:14]} 34. Ka5 {[%emt 0:00:13]} Qa3+ {[%emt 0:00:04]} 0-1

[Event "FIDE World Cup O12-A 2024"]
[Site "Batumi"]
[Date "2024.06.29"]
[Round "7.5"]
[White "Yang, ZiLong"]
[Black "Kozhedub, Ivan"]
[Result "1-0"]
[ECO "B34"]
[WhiteElo "1874"]
[BlackElo "1778"]
[Annotator "NA RC"]
[PlyCount "89"]
[EventDate "2024.06.23"]
[EventType "swiss"]
[EventCountry "GEO"]
[SourceTitle "playchess.com"]
[Source "ChessBase"]
[SourceQuality "1"]
[TimeControl "5400+30"]

1. e4 {[%emt 0:00:05]} c5 {[%emt 0:00:16]} 2. Nf3 {[%emt 0:00:29]} g6 {[%emt 0:00:10]} 3. d4 {[%emt 0:00:07]} cxd4 {[%emt 0:00:03]} 4. Nxd4 {[%emt 0:00:04]} Nf6 {[%emt 0:00:02]} 5. Nc3 {[%emt 0:00:09]} Nc6 {[%emt 0:00:06]} 6. Nxc6 {[%emt 0:00:14]} dxc6 {[%emt 0:01:17]} 7. Qxd8+ {[%emt 0:00:07]} Kxd8 {[%emt 0:00:02]} 8. Bc4 {[%emt 0:00:08]} Ke8 {[%emt 0:00:45]} 9. e5 {[%emt 0:00:47] B34: Sicilian: Accelerated Dragon with 5 Nc3: sidelines.} Nd7 {[%emt 0:00:36]} 10. e6 {[%emt 0:00:08]} fxe6 {[%emt 0:00:03]} 11. Bxe6 {[%emt 0:00:04]} Nf6 {[%emt 0:00:13]} 12. Bxc8 {[%emt 0:02:14]} Rxc8 {[%emt 0:00:04]} 13. Be3 {[%emt 0:00:04]} Nd5 {[%emt 0:06:57]} 14. Nxd5 {[%emt 0:01:13]} cxd5 {[%emt 0:01:11]} 15. O-O-O {[%emt 0:00:03]} e6 {[%emt 0:01:48]} 16. Bxa7 {[%emt 0:00:38]} Bg7 {[%emt 0:00:10]} 17. Rhe1 {[%emt 0:00:35]} Kd7 {[%emt 0:04:04]} 18. Bd4 {[%emt 0:01:26]} Bxd4 {[%emt 0:02:21]} 19. Rxd4 {[%emt 0:00:04]} Rhf8 {[%emt 0:02:14]} 20. f3 {[%emt 0:00:17]} Rf7 {[%emt 0:04:09]} 21. Rb4 {[%emt 0:01:34]} Kd6 {[%emt 0:02:51]} 22. Re3 {[%emt 0:07:26]} Rfc7 {[%emt 0:07:25]} 23. Rb6+ {[%emt 0:03:53]} Rc6 {[%emt 0:07:22]} 24. Reb3 {[%emt 0:01:14]} Ke5 {[%emt 0:01:35]} 25. c3 {[%emt 1:19:57]} Rxb6 {[%emt 0:00:23]} 26. Rxb6 {[%emt 0:00:00]} Rc7 {[%emt 0:00:04]} 27. Kd2 {[%emt 0:00:00]} g5 $18 {[%emt 0:03:52]} 28. Ke3 {[%emt 0:00:00]} h5 {[%emt 0:07:43]} 29. h3 {[%emt 0:00:00]} h4 {[%emt 0:01:56]} 30. Rb4 {[%emt 0:00:00]} Rg7 {[%emt 0:08:05]} 31. Rg4 {[%emt 0:00:00]} Rg8 {[%emt 0:14:13]} 32. Rxg5+ {[%emt 0:00:00]} Rxg5 {[%emt 0:00:05]} 33. f4+ {[%emt 0:00:00]} Kf5 {[%emt 0:00:05]} 34. fxg5 {[%emt 0:00:00]} e5 {[%emt 0:01:59]} 35. a4 {[%emt 0:00:00]} Kxg5 {[%emt 0:00:15]} 36. a5 {[%emt 0:00:00]} Kf5 {[%emt 0:12:24]} 37. Kf3 {[%emt 0:00:00]} e4+ {[%emt 0:05:39]} 38. Ke3 {[%emt 0:00:00]} Ke5 {[%emt 0:00:20]} 39. b4 {[%emt 0:00:00]} Kd6 {[%emt 0:00:11]} 40. Kd4 {[%emt 0:00:00]} Kc6 {[%emt 0:00:20]} 41. c4 {[%emt 0:00:00]} dxc4 {[%emt 0:00:25]} 42. Kxc4 {[%emt 0:00:00]} e3 {[%emt 0:00:06]} 43. b5+ {[%emt 0:00:00]} Kd6 {[%emt 0:00:23]} 44. Kd3 {[%emt 0:00:00]} Kc5 {[%emt 0:00:06]} 45. a6 {[%emt 0:00:00]} 1-0

[Event "FIDE World Cup O12-A 2024"]
[Site "Batumi"]
[Date "2024.06.29"]
[Round "7.6"]
[White "Yerzhanuly Yernur"]
[Black "Yin, Zeming"]
[Result "1-0"]
[ECO "D02"]
[WhiteElo "1810"]
[BlackElo "1832"]
[Annotator "NA RC"]
[PlyCount "118"]
[EventDate "2024.06.23"]
[EventType "swiss"]
[EventCountry "GEO"]
[SourceTitle "playchess.com"]
[Source "ChessBase"]
[SourceQuality "1"]
[TimeControl "5400+30"]

1. d4 {[%emt 0:00:02]} Nf6 {[%emt 0:00:04]} 2. Bf4 {[%emt 0:00:08]} d5 {[%emt 0:00:30]} 3. e3 {[%emt 0:00:07]} c5 {[%emt 0:00:05]} 4. Nf3 {[%emt 0:00:36]} Nc6 {[%emt 0:00:17]} 5. Nbd2 {[%emt 0:00:08]} cxd4 {[%emt 0:00:19]} 6. exd4 {[%emt 0:00:08]} Bf5 {[%emt 0:00:26]} 7. Bb5 {[%emt 0:01:32]} Qb6 {[%emt 0:02:50]} 8. c4 {[%emt 0:02:34]} dxc4 {[%emt 0:01:20]} 9. Qa4 {[%emt 0:00:25]} a6 {[%emt 0:04:39]} 10. Bxc6+ {[%emt 0:00:06]} bxc6 {[%emt 0:01:02]} 11. Nxc4 {[%emt 0:00:13]} Qb5 {[%emt 0:00:24]} 12. Qxb5 {[%emt 0:00:28]} cxb5 {[%emt 0:01:31]} 13. Nb6 {[%emt 0:01:48]} Ra7 {[%emt 0:04:21]} 14. a4 {[%emt 1:29:15]} Rb7 {[%emt 0:01:18]} 15. a5 {[%emt 0:00:00]} e6 {[%emt 0:02:20]} 16. O-O {[%emt 0:00:00]} Bb4 {[%emt 0:02:00]} 17. Bd2 {[%emt 0:00:00]} Be7 {[%emt 0:08:18]} 18. Ne5 {[%emt 0:00:00]} Bd8 {[%emt 0:10:01]} 19. Bb4 {[%emt 0:00:00]} Be4 {[%emt 0:14:20]} 20. Nc8 {[%emt 0:00:00]} Bc7 {[%emt 0:02:37]} 21. Rfc1 {[%emt 0:00:00]} Nd5 {[%emt 0:05:19]} 22. Nd6+ {[%emt 0:00:00]} Bxd6 {[%emt 0:02:28]} 23. Rc8+ {[%emt 0:00:00]} Ke7 {[%emt 0:00:31]} 24. Bxd6+ {[%emt 0:00:00]} Kxd6 {[%emt 0:00:13]} 25. Rxh8 {[%emt 0:00:00]} Rc7 {[%emt 0:04:30]} 26. Re1 {[%emt 0:00:00]} Nb4 {[%emt 0:06:41]} 27. f3 {[%emt 0:00:00]} Bf5 {[%emt 0:00:53]} 28. g4 {[%emt 0:00:00]} Bc2 {[%emt 0:00:12]} 29. g5 {[%emt 0:00:00]} Ke7 {[%emt 0:06:35]} 30. Rg8 {[%emt 0:00:00]} Bf5 {[%emt 0:03:49]} 31. h4 {[%emt 0:00:00]} g6 {[%emt 0:03:49]} 32. Ng4 {[%emt 0:00:00]} Nd3 {[%emt 0:01:34]} 33. Re2 {[%emt 0:00:00]} b4 {[%emt 0:03:10]} 34. Ra8 {[%emt 0:00:00]} b3 {[%emt 0:04:31]} 35. Ne3 {[%emt 0:00:00]} Rc1+ {[%emt 0:01:47]} 36. Kh2 {[%emt 0:00:00]} Nf4 {[%emt 0:03:46]} 37. Nxf5+ {[%emt 0:00:00]} gxf5 {[%emt 0:00:00]} 38. Rd2 {[%emt 0:00:00]} Kd7 {[%emt 0:00:00]} 39. Kg3 {[%emt 0:00:00]} Rc2 {[%emt 0:00:00]} 40. Ra7+ {[%emt 0:00:00]} Ke8 {[%emt 0:00:12]} 41. Kxf4 {[%emt 0:00:00]} Rxd2 {[%emt 0:00:06]} 42. Ke5 {[%emt 0:00:00]} Rxb2 {[%emt 0:00:51]} 43. Rxa6 {[%emt 0:00:00]} Rh2 {[%emt 0:01:11]} 44. Rb6 {[%emt 0:00:00]} Ra2 {[%emt 0:00:41]} 45. Rxb3 {[%emt 0:00:00]} Rxa5+ {[%emt 0:00:04]} 46. Kf6 {[%emt 0:00:00]} Ra1 {[%emt 0:00:13]} 47. h5 {[%emt 0:00:00]} Rd1 {[%emt 0:00:36]} 48. Rb8+ {[%emt 0:00:00]} Kd7 {[%emt 0:00:04]} 49. Rb7+ {[%emt 0:00:00]} Kd6 {[%emt 0:00:12]} 50. Rxf7 {[%emt 0:00:00]} Rxd4 {[%emt 0:00:10]} 51. Rxh7 {[%emt 0:00:09]} Rf4 {[%emt 0:00:38]} 52. g6 {[%emt 0:00:22]} Rxf3 {[%emt 0:00:23]} 53. g7 {[%emt 0:00:32]} Rg3 {[%emt 0:00:04]} 54. Rh6 {[%emt 0:00:06]} Rxg7 {[%emt 0:01:09]} 55. Kxg7 {[%emt 0:00:06]} f4 {[%emt 0:00:09]} 56. Rf6 {[%emt 0:00:04]} Ke5 {[%emt 0:00:03]} 57. h6 {[%emt 0:00:05]} f3 {[%emt 0:00:23]} 58. h7 {[%emt 0:00:07]} f2 {[%emt 0:00:03]} 59. Rxf2 {[%emt 0:00:08]} Kd5 {[%emt 0:04:18]} 1-0

[Event "FIDE World Cup O12-A 2024"]
[Site "Batumi"]
[Date "2024.06.29"]
[Round "7.7"]
[White "Haresh, Venkata Narayanaswam"]
[Black "Yang, Maxwell"]
[Result "1-0"]
[ECO "B23"]
[WhiteElo "1728"]
[BlackElo "1979"]
[Annotator "NA RC"]
[PlyCount "53"]
[EventDate "2024.06.23"]
[EventType "swiss"]
[EventCountry "GEO"]
[SourceTitle "playchess.com"]
[Source "ChessBase"]
[SourceQuality "1"]
[TimeControl "5400+30"]

1. e4 {[%emt 0:00:05]} c5 {[%emt 0:00:11]} 2. Nc3 {[%emt 0:00:06]} d6 {[%emt 0:00:22]} 3. d4 {[%emt 0:00:01]} cxd4 {[%emt 0:00:35]} 4. Qxd4 {[%emt 0:00:01]} Nc6 {[%emt 0:00:14]} 5. Qd2 {[%emt 0:00:02]} g6 {[%emt 0:00:09]} 6. b3 {[%emt 0:00:00]} Bh6 {[%emt 0:00:07]} 7. f4 {[%emt 0:00:05]} e5 {[%emt 0:00:24]} 8. Nb5 {[%emt 0:00:48]} Bxf4 {[%emt 0:10:46]} 9. Qxd6 {[%emt 0:00:01]} Qxd6 {[%emt 0:00:20]} 10. Nxd6+ {[%emt 0:00:02]} Kf8 {[%emt 0:01:01]} 11. Ba3 {[%emt 0:00:00]} Nge7 {[%emt 0:00:40]} 12. Bc4 {[%emt 0:08:29]} Nd4 {[%emt 0:06:01]} 13. Bd3 {[%emt 0:20:20]} Kg7 $1 {[%emt 0:04:15]} 14. g3 {[%emt 0:16:20]} Be3 {[%emt 0:02:23]} 15. Nc4 $14 {[%emt 0:04:17]} Bg5 {[%emt 0:40:46]} 16. Nxe5 {[%emt 0:06:04]} Bf6 {[%emt 0:00:11]} 17. Nc4 {[%emt 0:05:53]} Nec6 {[%emt 0:02:39]} 18. O-O-O {[%emt 0:04:59]} Rd8 {[%emt 0:08:12]} 19. Rf1 {[%emt 0:10:39]} Be6 {[%emt 0:02:37]} 20. Ne2 {[%emt 0:09:40]} b5 {[%emt 0:10:38]} 21. Nd2 {[%emt 0:00:44]} Nxe2+ {[%emt 0:00:15]} 22. Bxe2 {[%emt 0:00:22]} b4 {[%emt 0:00:39]} 23. Bb5 {[%emt 0:03:16]} bxa3 {[%emt 0:05:14]} 24. Bxc6 {[%emt 0:00:07]} Bg5 {[%emt 0:02:45]} 25. Rf2 {[%emt 0:07:06]} Rac8 {[%emt 0:00:17]} 26. Bb5 {[%emt 0:00:32]} Rc5 {[%emt 0:01:09]} 27. Bf1 {[%emt 0:04:01]} 1-0

[Event "FIDE World Cup O12-A 2024"]
[Site "Batumi"]
[Date "2024.06.29"]
[Round "7.8"]
[White "Mamikonyan, Artem T"]
[Black "Li, Yiheng"]
[Result "0-1"]
[ECO "B94"]
[WhiteElo "1855"]
[BlackElo "1886"]
[Annotator "NA RC"]
[PlyCount "80"]
[EventDate "2024.06.23"]
[EventType "swiss"]
[EventCountry "GEO"]
[SourceTitle "playchess.com"]
[Source "ChessBase"]
[SourceQuality "1"]
[TimeControl "5400+30"]

1. e4 {[%emt 0:00:01]} c5 {[%emt 0:00:06]} 2. Nf3 {[%emt 0:00:08]} d6 {[%emt 0:00:03]} 3. d4 {[%emt 0:00:12]} cxd4 {[%emt 0:00:04]} 4. Nxd4 {[%emt 0:00:06]} Nf6 {[%emt 0:00:03]} 5. Nc3 {[%emt 0:00:07]} a6 {[%emt 0:00:03]} 6. Bg5 {[%emt 0:01:53]} Nbd7 {[%emt 0:00:46]} 7. Qd2 {[%emt 0:00:52]} b5 {[%emt 0:03:45]} 8. Bd3 {[%emt 0:02:05] B94: Sicilian Najdorf: 6 Bg5 Nbd7.} Bb7 {[%emt 0:00:55]} 9. O-O {[%emt 0:02:47]} e6 {[%emt 0:00:53]} 10. f3 {[%emt 0:00:30]} Be7 {[%emt 0:01:27]} 11. Be3 {[%emt 0:00:21]} O-O {[%emt 0:00:35]} 12. a4 {[%emt 0:03:15]} b4 {[%emt 0:05:57]} 13. Nce2 {[%emt 0:00:51]} d5 {[%emt 0:02:38]} 14. exd5 {[%emt 0:00:18]} Nxd5 {[%emt 0:00:16]} 15. Bf2 {[%emt 0:00:07]} g6 {[%emt 0:06:56]} 16. Rad1 {[%emt 0:03:26]} e5 {[%emt 0:02:43]} 17. Nb3 {[%emt 0:01:02]} Bg5 {[%emt 0:03:33]} 18. Qe1 {[%emt 0:00:39]} Ne3 {[%emt 0:08:11]} 19. Bxe3 {[%emt 0:00:52]} Bxe3+ {[%emt 0:00:03]} 20. Kh1 {[%emt 0:00:09]} Qe7 {[%emt 0:03:47]} 21. Na5 {[%emt 0:03:08]} Nf6 {[%emt 0:03:18]} 22. Nxb7 {[%emt 0:01:12]} Qxb7 {[%emt 0:00:36]} 23. Ng3 {[%emt 0:00:09]} Qb6 $11 {[%emt 0:04:04]} 24. b3 {[%emt 0:15:50]} Bd4 {[%emt 0:04:38]} 25. Bc4 {[%emt 0:01:33]} Kg7 {[%emt 0:03:38]} 26. Qe2 {[%emt 0:07:35]} a5 {[%emt 0:06:06]} 27. f4 {[%emt 0:04:54]} e4 {[%emt 0:03:08]} 28. f5 {[%emt 0:04:10]} Rae8 {[%emt 0:01:08]} 29. Bb5 {[%emt 0:00:38]} Re5 {[%emt 0:02:43]} 30. Qc4 {[%emt 0:08:21]} Bf2 {[%emt 0:01:55]} 31. Qe2 {[%emt 0:03:40]} Bxg3 {[%emt 0:02:27]} 32. hxg3 {[%emt 0:00:05]} gxf5 {[%emt 0:03:49]} 33. Qd2 {[%emt 0:08:23]} Ng4 {[%emt 0:08:08]} 34. Qd6 {[%emt 0:01:32]} Qe3 {[%emt 0:03:13]} 35. Qd2 {[%emt 0:00:56]} Qxg3 {[%emt 0:00:55]} 36. Qg5+ {[%emt 0:00:28]} Kh8 {[%emt 0:00:05]} 37. Qf4 {[%emt 0:00:07]} Qxf4 {[%emt 0:00:15]} 38. Rxf4 {[%emt 0:00:05]} Ne3 {[%emt 0:01:00]} 39. Rd2 {[%emt 0:00:06]} Rc8 {[%emt 0:01:40]} 40. Re2 {[%emt 0:01:29]} Nd5 {[%emt 0:00:54]} 0-1

[Event "FIDE World Cup O12-A 2024"]
[Site "Batumi"]
[Date "2024.06.29"]
[Round "7.9"]
[White "Diasamidze, Rati"]
[Black "Berdashkevich, Makar"]
[Result "1/2-1/2"]
[ECO "A30"]
[WhiteElo "1646"]
[BlackElo "1650"]
[Annotator "NA RC"]
[PlyCount "57"]
[EventDate "2024.06.23"]
[EventType "swiss"]
[EventCountry "GEO"]
[SourceTitle "playchess.com"]
[Source "ChessBase"]
[SourceQuality "1"]
[TimeControl "5400+30"]

1. c4 {[%emt 0:00:03]} Nf6 {[%emt 0:02:33]} 2. Nf3 {[%emt 0:00:41]} e6 {[%emt 0:01:55]} 3. Nc3 {[%emt 0:01:01]} b6 {[%emt 0:02:56]} 4. g3 {[%emt 0:00:58]} Bb7 {[%emt 0:03:37]} 5. Bg2 {[%emt 0:00:32]} c5 {[%emt 0:00:41]} 6. O-O {[%emt 0:01:31]} d6 {[%emt 0:02:14]} 7. b3 {[%emt 0:03:09]} Nbd7 {[%emt 0:01:30]} 8. e3 {[%emt 0:06:12]} Be7 {[%emt 0:03:19]} 9. Bb2 {[%emt 0:01:54]} O-O {[%emt 0:00:52]} 10. d4 {[%emt 0:00:40]} cxd4 {[%emt 0:00:33]} 11. exd4 {[%emt 0:03:15]} a6 {[%emt 0:00:47]} 12. Re1 {[%emt 0:02:33]} Rc8 {[%emt 0:01:23]} 13. Qd3 {[%emt 0:02:21]} Re8 {[%emt 0:03:35]} 14. Rad1 {[%emt 0:03:46]} Bf8 {[%emt 0:02:43]} 15. h4 {[%emt 0:07:11]} Qc7 {[%emt 0:06:03]} 16. Rc1 {[%emt 0:09:28]} Qb8 {[%emt 0:01:55]} 17. a4 {[%emt 0:12:19]} Qa8 {[%emt 0:03:15]} 18. Re2 {[%emt 0:05:25]} h6 {[%emt 0:08:54]} 19. Ne1 {[%emt 0:02:46]} d5 {[%emt 0:03:32]} 20. Nd1 {[%emt 0:10:27]} Ne4 {[%emt 0:07:14]} 21. Bxe4 {[%emt 0:07:04]} dxe4 {[%emt 0:00:40]} 22. Qb1 {[%emt 0:01:28]} Qb8 {[%emt 0:06:57]} 23. Ne3 {[%emt 0:17:16]} f5 {[%emt 0:01:07]} 24. N1g2 {[%emt 0:00:00]} Bd6 {[%emt 0:02:28]} 25. d5 {[%emt 0:00:00]} Nc5 {[%emt 0:02:17]} 26. Rd1 {[%emt 0:00:00]} Rf8 {[%emt 0:07:44]} 27. dxe6 {[%emt 0:00:00]} Nd3 {[%emt 0:01:36]} 28. Rxd3 {[%emt 0:01:02]} exd3 {[%emt 0:01:13]} 29. Qxd3 {[%emt 0:00:03]} 1/2-1/2